bitfinex-derivatives/quotes_ETHF0:USTF0_20260204
["timestamp","ask_amount","ask_price","bid_price","bid_amount"]
[1770228519289,7.74574596,2107.7,2105.6,3.41638764]
[1770228519494,7.74574596,2107.5,2105.7,0.23794]
[1770228519785,7.74574596,2107.5,2106.0,5.1810394]
[1770228519988,7.74574596,2107.5,2106.3,4.18136941]
[1770228520184,7.74574596,2107.5,2105.8,2.70342764]
[1770228520392,7.74574596,2107.5,2105.7,0.475]
[1770228520592,7.74574596,2107.5,2105.6,0.23795]
[1770228521090,8.83951596,2107.3,2105.0,0.23802]
[1770228521290,9.08117989,2107.3,2105.0,0.23802]
[1770228521497,9.08119989,2107.3,2105.0,0.23802]
[1770228521791,7.98743989,2107.3,2105.1,5.27636941]
[1770228521989,7.98743989,2107.3,2105.1,4.18149941]
[1770228522592,7.74574596,2107.1,2105.1,0.23801]
[1770228522892,7.74574596,2106.5,2104.6,0.23807]
[1770228523087,7.74574596,2106.5,2104.7,0.23806]
[1770228523686,7.74574596,2106.5,2104.3,4.17359699]
[1770228523892,7.74574596,2106.5,2104.3,4.41169699]
[1770228524093,7.74574596,2105.6,2103.6,0.23818]
[1770228524288,7.74574596,2105.4,2103.9,1.09551]
[1770228524491,7.74574596,2105.4,2104.0,1.33357]
[1770228524686,7.74574596,2105.4,2104.1,0.23813]
[1770228524889,7.74574596,2105.4,2104.2,0.23811]
[1770228525291,7.74574596,2105.4,2104.3,0.2381]
[1770228525494,7.74574596,2105.4,2103.7,0.23817]
[1770228525791,7.98372596,2105.4,2103.6,0.00554766]
[1770228526490,7.74574596,2105.4,2103.6,0.00554766]
[1770228526792,7.98379596,2104.9,2102.7,3.64556006]
[1770228527093,7.98379596,2104.9,2102.8,0.23827]
[1770228527294,7.74574596,2104.9,2103.4,0.2382]
[1770228527691,7.74574596,2104.9,2103.0,3.17056006]
[1770228527995,7.74574596,2104.9,2103.0,3.40881006]
[1770228528194,7.74574596,2104.9,2103.1,0.23824]
[1770228528689,7.74574596,2104.6,2102.1,1.09643]
[1770228528895,7.74574596,2104.1,2102.1,1.09644]
[1770228529192,7.74574596,2104.1,2102.7,0.23829]
[1770228529193,7.74574596,2103.9,2102.7,0.23829]
[1770228529395,7.74574596,2103.9,2102.9,1.09602]
[1770228529591,0.00480443,2104.1,2103.0,0.23825]
[1770228529791,0.00480443,2104.1,2103.2,3.52198714]
[1770228529997,0.00480443,2104.1,2103.3,3.67286478]
[1770228530296,0.475,2104.4,2103.3,3.67286478]
[1770228530491,8.22074596,2104.4,2103.3,0.23822]
[1770228530690,8.22074596,2104.4,2103.2,0.00334483]
[1770228530892,8.22074596,2104.4,2102.3,0.23833]
[1770228531097,7.98386596,2104.2,2102.3,0.23833]
[1770228531495,7.98388596,2104.0,2102.0,3.43798961]
[1770228531694,7.74574596,2104.0,2102.2,3.43798961]
[1770228531991,7.7519032,2104.0,2102.4,4.53969383]
[1770228532193,7.7519032,2104.0,2102.4,3.44342383]
[1770228532392,7.7519032,2104.0,2102.2,0.00171125]
[1770228532590,7.98392596,2103.7,2102.2,0.00171125]
[1770228532795,7.74574596,2103.5,2102.2,0.00171125]
[1770228532995,7.74574596,2103.3,2101.8,0.23838]
[1770228533198,7.74574596,2103.3,2102.1,0.23835]
[1770228533494,7.74574596,2103.3,2101.6,1.0967]
[1770228533695,7.64493997,2102.7,2100.7,1.09718]
[1770228534000,7.88325997,2102.5,2100.6,3.37624801]
[1770228534196,7.64493997,2102.3,2100.2,3.37624801]
[1770228534398,7.64493997,2102.3,2100.4,0.23854]
[1770228534595,7.88329997,2102.1,2100.1,0.23858]
[1770228534796,7.64493997,2101.9,2099.6,0.475]
[1770228534995,7.64493997,2101.9,2099.7,0.23862]
[1770228535196,7.64493997,2101.7,2099.6,0.71364]
[1770228535396,7.64493997,2101.7,2100.3,1.09736]
[1770228535698,7.64493997,2101.7,2100.9,1.09705]
[1770228535902,0.475,2102.4,2101.4,1.33521]
[1770228536103,0.475,2102.4,2101.1,1.33539]
[1770228536301,0.475,2102.4,2101.2,0.23846]
[1770228536496,0.475,2102.4,2100.9,1.09707]
[1770228536703,0.475,2102.4,2100.7,1.09716]
[1770228536902,0.475,2102.4,2100.8,0.2385]
[1770228537098,0.475,2102.4,2101.3,0.23844]
[1770228537402,1.09641,2102.2,2100.2,0.23857]
[1770228537603,0.475,2102.4,2100.3,0.23856]
[1770228537802,7.64493997,2102.3,2100.3,0.23856]
[1770228538002,7.64493997,2102.3,2100.6,0.23852]
[1770228538197,7.64493997,2102.3,2100.7,0.23851]
[1770228538399,7.64493997,2102.3,2100.9,5.60718298]
[1770228538604,7.64493997,2102.3,2101.1,0.23847]
[1770228539003,7.64493997,2102.3,2100.9,4.51012298]
[1770228539304,7.64493997,2102.3,2100.7,0.23851]
[1770228540004,7.64493997,2102.3,2100.7,4.73596816]
[1770228540506,7.64493997,2102.3,2100.7,0.23851]
[1770228540707,7.57683401,2102.1,2100.4,0.476]
[1770228541403,7.57683401,2101.9,2100.4,0.476]
[1770228541600,0.23844,2101.4,2099.4,4.49745816]
[1770228541804,8.05283401,2101.3,2099.8,0.23861]
[1770228541999,8.05283401,2101.3,2099.7,0.23862]
[1770228542203,8.05283401,2101.3,2099.3,1.09788]
[1770228542204,7.57683401,2101.1,2099.3,0.23867]
[1770228542509,7.57683401,2100.6,2099.2,0.23868]
[1770228542800,0.00606313,2100.6,2099.7,1.0977]
[1770228543000,3.13e-06,2100.6,2100.0,1.09754]
[1770228543206,0.476,2101.3,2100.3,0.23855]
[1770228543805,0.476,2101.3,2099.8,0.23861]
[1770228544006,0.476,2101.3,2098.7,2.70342764]
[1770228544007,1.09692,2101.2,2098.7,2.70342764]
[1770228544210,3.13740403,2101.2,2099.2,0.23868]
[1770228544401,3.13740403,2100.7,2098.7,0.23874]
[1770228544801,7.57683401,2100.6,2098.8,1.09817]
[1770228544999,7.58083607,2100.6,2098.9,0.23871]
[1770228545401,7.58083607,2100.6,2099.1,0.23869]
[1770228545606,7.58083607,2100.6,2099.2,0.23868]
[1770228545802,7.58083607,2100.6,2098.8,0.0011931]
[1770228546009,7.57683401,2100.2,2098.8,0.0011931]
[1770228546307,7.57683401,2100.0,2099.1,0.23869]
[1770228546507,0.476,2100.1,2099.3,0.23867]
[1770228546708,7.57683401,2100.4,2099.5,0.23864]
[1770228547407,7.57683401,2100.4,2099.0,1.09806]
[1770228547408,7.57683401,2100.4,2099.0,0.2387]
[1770228547600,7.57683401,2100.4,2099.2,0.23868]
[1770228547804,0.00400206,2100.6,2099.3,1.09791]
[1770228548004,7.58083607,2100.6,2099.3,5.22822837]
[1770228548306,7.58083607,2100.6,2098.9,5.40337104]
[1770228548504,7.58083607,2100.6,2099.0,5.64207104]
[1770228548705,7.58083607,2100.6,2099.0,5.40337104]
[1770228549004,7.58083607,2100.6,2099.3,0.23867]
[1770228549201,7.57683401,2100.2,2098.8,0.0011931]
[1770228549612,7.57683401,2100.2,2098.8,0.2399231]
[1770228549908,7.57683401,2100.2,2099.1,0.23869]
[1770228550108,7.57683401,2100.2,2098.8,0.0011931]
[1770228550303,7.57683401,2100.2,2098.9,0.23872]
[1770228550505,7.81542401,2100.0,2098.8,0.0011931]
[1770228550807,7.57683401,2099.4,2096.9,0.476]
[1770228551004,7.57683401,2098.6,2096.7,0.23897]
[1770228551200,7.57683401,2098.0,2096.3,0.47701958]
[1770228551601,7.58032535,2098.0,2096.8,1.33815]
[1770228551809,7.58032535,2098.0,2096.8,0.23895]
[1770228552002,7.58032535,2098.0,2096.3,0.48156664]
[1770228552406,7.58032535,2098.0,2096.8,0.23895]
[1770228552711,7.58032535,2098.0,2096.3,1.58102664]
[1770228552909,7.58032535,2098.0,2096.3,1.82004664]
[1770228553204,7.58032535,2098.0,2096.5,4.92628276]
[1770228553411,7.58032535,2098.0,2096.9,0.23894]
[1770228553602,0.00349134,2098.0,2097.4,1.09889]
[1770228553807,0.00349134,2098.0,2097.5,0.23887]
[1770228554112,0.476,2099.1,2097.7,0.23885]
[1770228554314,0.476,2099.1,2097.1,0.23892]
[1770228554512,0.476,2099.1,2097.1,1.33798]
[1770228554712,0.476,2099.1,2097.1,1.33797]
[1770228555012,0.00465884,2099.1,2097.7,0.23885]
[1770228555213,3.37613403,2098.8,2097.2,3.88669696]
[1770228555411,3.13740403,2098.8,2096.6,1.33828]
[1770228555610,7.57683401,2099.0,2097.1,1.33798]
[1770228555906,7.57683401,2099.0,2096.5,5.67347915]
[1770228555907,7.57683401,2098.8,2096.5,7.01183915]
[1770228556112,7.57683401,2098.8,2096.6,0.23898]
[1770228556312,7.57683401,2098.6,2096.6,0.23898]
[1770228556912,7.57683401,2098.6,2096.7,0.23896]
[1770228557209,7.57683401,2098.6,2097.0,0.23893]
[1770228557813,7.57683401,2098.6,2097.0,6.02398489]
[1770228558013,7.57683401,2098.6,2096.6,5.71312567]
[1770228558310,7.81561401,2098.4,2096.3,0.48156664]
[1770228558515,7.57683401,2098.2,2096.3,0.48156664]
[1770228558718,7.81563401,2098.2,2096.3,0.48156664]
[1770228559111,7.81566401,2098.0,2096.3,0.48156664]
[1770228559307,7.57683401,2097.6,2096.3,0.48156664]
[1770228559513,7.81575401,2097.2,2095.2,0.23913]
[1770228559716,7.57683401,2097.0,2095.4,1.09995]
[1770228560008,8.05383401,2097.0,2096.1,0.23903]
[1770228560313,8.05383401,2097.0,2095.3,4.31870785]
[1770228560314,8.05383401,2097.0,2095.1,0.23915]
[1770228560516,8.29745229,2097.0,2094.8,1.10027]
[1770228560717,8.05851229,2097.0,2095.0,1.10015]
[1770228560916,8.05851229,2097.0,2095.4,0.23911]
[1770228561511,8.05851229,2097.0,2095.4,0.23999731]
[1770228561816,8.05851229,2097.0,2095.4,0.00088731]
[1770228562310,8.05851229,2097.0,2095.5,7.04503376]
[1770228562517,8.05851229,2097.0,2095.6,7.28407376]
[1770228562716,8.05851229,2097.0,2095.6,7.28406376]
[1770228562918,7.57683401,2096.8,2095.5,1.0999]
[1770228563118,7.57683401,2096.8,2095.3,2.51381376]
[1770228563419,7.57683401,2096.8,2095.5,0.23909233]
[1770228563716,7.57683401,2096.8,2094.6,2.70832764]
[1770228564217,3.0519914,2094.7,2057.0,10.255]
[1770228564514,1.5794,2090.8,2085.2,5.0255793]
[1770228564713,1.5794,2090.8,2083.6,3.0519914]
[1770228564714,7.44631797,2090.0,2083.6,3.0519914]
[1770228565018,7.29207007,2088.6,2085.2,5.19751735]
[1770228565314,0.00580161,2088.6,2087.1,7.65657474]
[1770228565512,0.10432914,2088.5,2087.1,7.66218907]
[1770228565710,0.00580161,2088.6,2087.3,7.65657474]
[1770228565913,5.50637215,2088.4,2088.0,1.10385]
[1770228566121,0.00580161,2088.6,2088.3,7.65657474]
[1770228566122,5.50637215,2088.5,2088.3,7.65657474]
[1770228566313,7.44631797,2090.2,2088.5,7.65657474]
[1770228566616,5.49944952,2089.6,2088.5,7.65657474]
[1770228566816,5.49944952,2089.6,2088.5,8.76015474]
[1770228567114,0.91645333,2089.9,2088.4,7.65657474]
[1770228567313,5.49944952,2089.5,2089.0,7.65657474]
[1770228567618,0.00393792,2089.9,2089.0,0.00397965]
[1770228567820,4.94957752,2089.8,2089.0,0.00397965]
[1770228568112,6.75687522,2089.9,2087.9,7.65657474]
[1770228568312,7.8559473,2089.6,2087.5,7.65657474]
[1770228568516,6.7529373,2089.1,2086.9,7.65657474]
[1770228568718,6.7529373,2089.1,2086.6,1.10457]
[1770228568719,6.7529373,2088.3,2086.6,7.65657474]
[1770228568914,7.2309373,2088.7,2086.9,7.65657474]
[1770228569112,2.56738735,2088.2,2086.7,8.76111474]
[1770228569312,0.00527302,2088.3,2086.9,7.65657474]
[1770228569513,0.00527302,2088.3,2087.0,0.00397965]
[1770228569709,5.51377691,2088.2,2086.7,7.65657474]
[1770228569914,5.51377691,2088.2,2087.3,8.76076474]
[1770228570213,5.51377691,2088.2,2087.4,1.10814965]
[1770228570417,5.51377691,2088.2,2087.6,0.00397965]
[1770228570621,5.51377691,2088.2,2086.8,7.65657474]
[1770228570820,5.51377691,2088.2,2085.8,1.105]
[1770228570821,7.44266676,2088.1,2086.4,1.10469]
[1770228571016,5.51377691,2088.2,2087.0,8.76094474]
[1770228571217,0.00527302,2088.3,2087.2,1.10427]
[1770228571218,5.0728595,2088.0,2087.2,1.10427]
[1770228571416,5.23213601,2088.2,2087.5,0.00397965]
[1770228571714,0.00527302,2088.3,2087.9,8.76442439]
[1770228571911,0.00527302,2088.3,2087.9,8.76046474]
[1770228572120,7.44631797,2090.3,2088.1,8.76033474]
[1770228572316,7.44631797,2090.3,2088.6,8.76010474]
[1770228572513,5.46864462,2089.4,2088.6,7.65657474]
[1770228572716,5.46864462,2089.4,2088.7,0.8697]
[1770228573117,0.68640411,2089.4,2088.8,7.65657474]
[1770228573312,0.478,2090.4,2088.8,7.65657474]
[1770228573313,5.08943461,2090.2,2088.9,1.10338]
[1770228573517,7.44631797,2090.7,2089.1,8.75982474]
[1770228573720,3.44005546,2090.3,2089.1,8.75982474]
[1770228573921,3.44005546,2090.3,2089.4,7.65657474]
[1770228574117,7.44631797,2091.4,2089.4,8.75966474]
[1770228574314,2.34086398,2091.3,2089.4,7.65657474]
[1770228574522,7.45216025,2091.4,2089.4,7.65657474]
[1770228575023,0.50957929,2091.3,2089.4,7.65657474]
[1770228575218,0.50957929,2091.3,2089.5,1.10306]
[1770228575425,0.50957929,2091.3,2089.8,7.65657474]
[1770228576323,0.50957929,2091.3,2090.0,7.65657474]
[1770228576524,0.50957929,2091.3,2090.2,7.65657474]
[1770228576819,0.50957929,2091.3,2090.2,0.00551707]
[1770228577020,0.50957929,2091.3,2090.2,7.66209181]
[1770228577723,7.44631797,2091.2,2089.2,7.65657474]
[1770228577924,7.44631797,2091.2,2089.2,8.75977474]
[1770228578125,0.54929342,2091.1,2089.5,7.65657474]
[1770228578422,7.99561139,2091.1,2089.5,7.65657474]
[1770228578628,4.7872,2090.6,2088.8,9.23799474]
[1770228578825,7.99561139,2091.1,2089.1,7.65657474]
[1770228579126,7.99561139,2091.1,2089.3,7.65657474]
[1770228579127,2.34112685,2090.5,2089.3,7.65657474]
[1770228579425,0.00584228,2091.4,2089.9,7.65657474]
[1770228579626,0.00584228,2091.4,2089.9,8.13457474]
[1770228579825,7.44631797,2091.3,2089.9,7.65657474]
[1770228580030,12.23351797,2091.3,2089.9,7.65657474]
[1770228580219,7.44631797,2091.1,2089.5,7.65657474]
[1770228580528,7.44631797,2090.8,2089.1,7.65657474]
[1770228580727,4.7872,2090.7,2089.1,7.65657474]
[1770228580928,4.7872,2090.7,2089.1,8.75983474]
[1770228581127,7.44631797,2090.8,2089.1,8.75983474]
[1770228581327,0.00584228,2091.4,2089.8,7.65657474]
[1770228581728,4.7872,2091.3,2089.8,7.65657474]
[1770228581928,7.44631797,2091.0,2089.4,7.65657474]
[1770228582228,7.92431797,2091.0,2089.4,7.65657474]
[1770228582730,7.44631797,2090.7,2089.1,8.75984474]
[1770228582928,0.478,2091.0,2089.4,7.65657474]
[1770228583527,7.44631797,2091.1,2089.1,1.10327]
[1770228583528,4.7872,2090.9,2089.6,7.65657474]
[1770228583722,4.7872,2091.0,2089.6,7.65657474]
[1770228583922,7.92531797,2090.9,2089.0,7.65657474]
[1770228584127,12.71251797,2090.9,2089.0,7.65657474]
[1770228584425,7.44631797,2090.7,2089.2,7.65657474]
[1770228584723,4.7872,2090.4,2089.2,3.65657474]
[1770228584929,7.44631797,2090.5,2089.2,3.65657474]
[1770228585130,0.18291379,2090.3,2089.2,3.65657474]
[1770228585430,0.18318543,2090.4,2088.9,1.3432]
[1770228585725,5.33651095,2090.8,2089.7,1.10295]
[1770228585924,0.54931095,2090.8,2089.0,5.81403092]
[1770228586126,0.18318543,2090.7,2089.3,1.10312]
[1770228586325,0.18318543,2090.7,2089.1,1.58226]
[1770228586630,0.18318543,2090.7,2089.4,7.65657474]
[1770228587530,0.18318543,2090.7,2089.7,7.65657474]
[1770228587726,4.97038543,2090.7,2089.7,7.65657474]
[1770228587932,0.18318543,2090.7,2089.7,7.65657474]
[1770228588427,7.6295034,2090.7,2088.8,0.00433072]
[1770228588833,12.23351797,2090.0,2088.8,7.66090546]
[1770228589025,7.44631797,2090.4,2088.8,8.76431546]
[1770228589224,1.2825435,2089.9,2089.1,7.65657474]
[1770228589423,7.92531797,2090.8,2089.3,7.65657474]
[1770228589731,7.92531797,2090.8,2089.5,7.65657474]
[1770228590230,4.7872,2090.7,2089.5,7.65657474]
[1770228590430,0.0041998,2090.7,2089.5,7.65657474]
[1770228590732,7.44631797,2090.6,2089.5,7.65657474]
[1770228590931,7.44631797,2090.6,2088.8,0.00433072]
[1770228590932,4.7872,2090.1,2088.8,0.00433072]
[1770228591132,7.44631797,2090.4,2088.8,7.66090546]
[1770228591532,7.44631797,2090.2,2088.8,7.66090546]
[1770228591832,7.44631797,2090.0,2088.8,7.66090546]
[1770228592034,4.7872,2089.8,2088.8,7.66090546]
[1770228592333,7.44631797,2090.0,2087.5,1.10406]
[1770228592334,12.04497092,2089.7,2087.6,7.65657474]
[1770228592626,7.44631797,2089.1,2087.6,9.00064474]
[1770228592825,7.44631797,2089.8,2087.9,7.65657474]
[1770228593027,8.54677295,2089.0,2087.1,7.65657474]
[1770228593329,7.44631797,2088.8,2087.1,8.76555084]
[1770228593536,7.44631797,2088.8,2087.4,7.65657474]
[1770228593729,0.36699402,2088.7,2087.6,7.65657474]
[1770228594129,4.7872,2088.6,2087.6,7.65657474]
[1770228594334,6.81530131,2088.8,2087.6,7.65657474]
[1770228594532,0.18347505,2088.5,2087.2,7.59015844]
[1770228594728,50.52386089,2088.6,2087.2,7.59015844]
[1770228594926,4.7872,2088.4,2087.2,7.59015844]
[1770228595130,47.74206879,2088.6,2087.2,7.59015844]
[1770228595131,1.46792337,2088.5,2087.2,7.59015844]
[1770228595331,0.36704676,2088.3,2087.2,7.59015844]
[1770228595534,2.75063012,2088.9,2087.2,7.59015844]
[1770228595829,3.85003415,2088.6,2087.2,7.59015844]
[1770228596033,0.00430442,2089.0,2087.6,7.50025844]
[1770228596229,2.75063012,2089.6,2088.2,7.50025844]
[1770228596429,10.10615328,2089.7,2088.3,7.50025844]
[1770228596628,7.35552316,2089.5,2088.3,7.50025844]
[1770228596834,11.61966349,2089.4,2087.9,7.50025844]
[1770228597130,7.35552316,2089.6,2088.1,7.50025844]
[1770228597432,7.35552316,2089.4,2088.1,7.50025844]
[1770228597638,7.35552316,2089.2,2087.7,7.74025844]
[1770228597933,7.36139026,2089.6,2087.9,7.50025844]
[1770228598135,4.26519828,2089.5,2087.9,8.60415844]
[1770228598338,0.0058671,2089.6,2088.3,7.74018844]
[1770228598529,0.0058671,2089.6,2088.5,7.50025844]
[1770228599839,7.35552316,2090.0,2088.5,7.50025844]
[1770228600327,7.35552316,2090.0,2088.6,7.52560485]
[1770228600531,7.35552316,2090.0,2088.6,7.04660485]
[1770228600731,0.00485617,2090.0,2089.0,7.04660485]
[1770228600932,2.75063012,2090.7,2089.2,4.95319736]
[1770228601133,2.75063012,2090.8,2089.5,4.95319736]
[1770228601333,4.25065829,2090.7,2089.3,0.479]
[1770228601537,7.05212888,2090.1,2088.6,0.00558225]
[1770228601835,7.05212888,2089.9,2088.6,4.95877961]
[1770228602029,7.05212888,2089.9,2088.9,0.23986]
[1770228602030,0.00424738,2089.9,2088.9,0.23986]
[1770228602434,7.05212888,2090.4,2089.2,5.14386093]
[1770228602629,7.05212888,2090.7,2089.4,5.14383093]
[1770228603037,9.802759,2091.0,2089.4,4.90403093]
[1770228603238,4.21858869,2090.9,2089.4,5.14383093]
[1770228603439,7.82560612,2091.8,2090.3,0.2397]
[1770228603732,7.82560612,2092.4,2090.6,1.10248]
[1770228603933,0.6498716,2092.5,2091.0,0.15778207]
[1770228604135,7.98620508,2092.2,2090.5,0.63678207]
[1770228604438,7.74671508,2092.2,2090.9,0.15778207]
[1770228604735,7.82560612,2093.1,2091.7,0.23954]
[1770228604936,7.82560612,2093.1,2091.8,0.479]
[1770228605137,0.97446009,2093.3,2091.8,0.479]
[1770228605138,0.49546009,2093.0,2091.8,0.479]
[1770228605339,8.32106621,2093.2,2091.8,0.479]
[1770228605835,8.326739,2093.2,2091.8,0.479]
[1770228606437,7.83127891,2093.2,2091.8,0.479]
[1770228606645,8.06501612,2092.8,2091.0,0.23962]
[1770228606937,0.49546009,2093.1,2091.9,0.23952]
[1770228607137,0.00567279,2093.2,2092.5,1.10148]
[1770228607343,0.00567279,2093.2,2092.6,0.23943]
[1770228607643,1.10033,2094.7,2092.6,0.23943]
[1770228607644,7.82560612,2094.3,2092.8,0.23941]
[1770228607838,7.82560612,2094.7,2093.4,1.101]
[1770228608040,7.82560612,2094.7,2093.5,0.23933]
[1770228608241,0.49546009,2094.6,2093.6,0.23932]
[1770228608444,7.82560612,2094.9,2093.5,4.80850776]
[1770228608640,0.0058046,2094.9,2093.9,0.23928]
[1770228608836,0.0058046,2094.9,2094.1,0.23926]
[1770228609140,4.45355,2096.2,2094.1,0.23926]
[1770228609141,7.82560612,2096.1,2094.1,0.0047585]
[1770228609443,0.479,2096.4,2094.1,0.0047585]
[1770228609444,7.82560612,2095.2,2094.1,0.0047585]
[1770228609637,7.82560612,2095.0,2094.1,0.0047585]
[1770228609836,7.82560612,2095.0,2093.2,1.10111]
[1770228610037,8.32106621,2094.9,2093.5,1.34028]
[1770228610237,8.32106621,2094.9,2093.1,4.81991042]
[1770228610433,1.57796,2095.4,2093.0,14.82958]
[1770228610434,0.49546009,2094.8,2093.4,0.23934]
[1770228610636,7.82560612,2095.1,2093.5,0.23933]
[1770228610836,7.83164422,2095.1,2093.5,0.2448503]
[1770228611043,8.32106621,2095.0,2093.5,0.2448503]
[1770228611538,8.32106621,2095.0,2093.7,0.23931]
[1770228611743,0.49546009,2095.0,2093.8,0.478]
[1770228611945,8.32106621,2095.0,2093.8,0.478]
[1770228612140,0.0060381,2095.1,2093.9,1.34001]
[1770228612447,0.50149819,2095.1,2093.9,0.23928]
[1770228612641,0.50149819,2095.1,2093.9,1.34001]
[1770228612844,0.0060381,2095.1,2094.3,1.10052]
[1770228613139,7.82560612,2095.8,2094.5,0.23922]
[1770228613345,0.49546009,2096.1,2094.9,1.10017]
[1770228613541,0.42821726,2096.9,2095.9,1.09967]
[1770228613748,1.57623,2098.7,2096.6,0.23897]
[1770228614246,1.33778,2097.5,2096.7,0.9538]
[1770228614444,0.00128421,2097.4,2095.4,1.09995]
[1770228614647,0.49546009,2097.4,2095.3,0.71712]
[1770228614846,0.49546009,2097.4,2095.4,5.37313615]
[1770228615250,0.49546009,2097.4,2095.3,0.71712]
[1770228615251,1.09908,2097.1,2095.3,0.478]
[1770228615449,0.00347619,2097.1,2095.3,0.48389534]
[1770228615640,7.82560612,2096.5,2095.3,0.00589534]
[1770228615945,7.82560612,2096.3,2095.4,0.089]
[1770228616140,7.82560612,2096.1,2095.4,0.089]
[1770228616343,8.32106621,2096.6,2095.4,0.089]
[1770228616547,7.82560612,2096.3,2095.4,0.089]
[1770228616747,7.82560612,2096.1,2094.5,13.355]
[1770228616943,7.82560612,2095.7,2094.5,13.355]
[1770228617248,7.82560612,2095.7,2094.4,0.478]
[1770228617543,7.82560612,2095.3,2094.4,0.478]
[1770228617744,7.82560612,2095.1,2094.4,0.00491787]
[1770228617950,0.00552605,2095.3,2092.7,0.478]
[1770228617951,9.16502612,2094.9,2092.7,0.478]
[1770228618144,7.82560612,2094.3,2092.7,1.57935]
[1770228618350,7.82560612,2094.3,2092.7,6.67289168]
[1770228618644,0.40056475,2094.2,2092.9,1.34067]
[1770228618849,0.478,2094.8,2092.9,1.34067]
[1770228618850,7.82560612,2094.7,2093.1,1.34052]
[1770228619050,8.22617087,2094.7,2093.0,0.05702965]
[1770228619250,8.22617087,2094.7,2092.9,0.00357679]
[1770228619446,8.22617087,2094.7,2093.1,6.19465168]
[1770228619652,8.22617087,2094.7,2093.2,0.23937]
[1770228619852,8.22745508,2094.7,2093.3,1.3404]
[1770228620053,8.22617087,2094.7,2093.3,6.16030879]
[1770228620250,0.40056475,2094.7,2093.8,0.2393]
[1770228620553,7.82560612,2095.2,2093.8,1.10077]
[1770228621053,7.82560612,2096.0,2094.5,0.23922]
[1770228621252,7.82560612,2096.0,2094.1,1.10064]
[1770228621553,7.82560612,2096.0,2094.2,1.10053]
[1770228621756,0.00128421,2095.8,2094.2,4.5805688]
[1770228621957,0.00128421,2095.8,2094.5,1.33963]
[1770228622157,7.83120007,2095.8,2094.5,0.00527246]
[1770228622357,7.83248428,2095.8,2094.5,0.00527246]
[1770228622558,7.82689033,2095.6,2094.5,0.00527246]
[1770228622753,0.00559395,2095.8,2094.9,1.33938]
[1770228622959,7.82560612,2096.4,2095.2,1.33918]
[1770228623157,7.82560612,2096.4,2094.7,13.4792]
[1770228623359,7.82560612,2096.3,2095.0,0.23916]
[1770228623656,7.81368891,2095.9,2094.6,0.478]
[1770228623861,7.81368891,2095.9,2094.5,0.00527246]
[1770228624059,7.81368891,2095.9,2094.8,0.23918]
[1770228624262,0.00367078,2095.9,2095.0,0.23916]
[1770228624556,7.81368891,2097.0,2095.5,0.2391]
[1770228624762,7.81368891,2097.0,2095.6,0.23909]
[1770228624956,7.81368891,2097.0,2095.2,1.10005]
[1770228625162,7.81368891,2097.0,2095.5,0.2391]
[1770228625459,7.81368891,2098.2,2096.5,0.23899]
[1770228625655,7.81368891,2098.2,2096.6,0.478]
[1770228625855,7.8174428,2098.2,2096.6,0.478]
[1770228626063,7.81368891,2098.2,2096.6,0.478]
[1770228626255,7.81368891,2098.0,2096.6,0.71698]
[1770228626458,7.81368891,2098.4,2097.0,0.23893]
[1770228626864,7.81368891,2098.4,2097.0,1.33804]
[1770228627061,7.81368891,2098.4,2097.1,3.97758158]
[1770228627263,7.81748808,2098.9,2097.2,0.2389]
[1770228627464,7.81368891,2098.7,2096.8,0.23896]
[1770228627860,7.81368891,2098.7,2096.8,3.95485718]
[1770228628064,7.8174428,2098.7,2096.8,4.19380718]
[1770228628263,8.0561928,2098.7,2096.8,0.23895]
[1770228628662,7.8174428,2098.7,2097.4,0.23888]
[1770228628865,7.81748808,2098.9,2097.7,0.23884]
[1770228629061,7.81748808,2098.9,2097.8,0.23884]
[1770228629259,0.00379917,2098.9,2097.8,1.09868]
[1770228629463,7.81368891,2099.4,2097.8,3.81854215]
[1770228629660,7.81368891,2100.8,2099.0,0.23871]
[1770228629863,7.81368891,2100.3,2098.6,0.477]
[1770228630064,7.81368891,2100.3,2099.0,0.2387]
[1770228630366,7.81368891,2100.1,2099.0,0.00580892]
[1770228630664,7.8174428,2099.9,2099.0,0.00580892]
[1770228630865,7.81368891,2099.7,2099.0,0.00580892]
[1770228631066,7.81368891,2099.4,2098.0,1.09859]
[1770228631267,7.81368891,2099.3,2098.0,0.23881]
[1770228631463,1.09745,2100.2,2099.1,1.3367]
[1770228631464,7.81368891,2100.2,2099.1,1.3367]
[1770228631760,7.81368891,2100.2,2098.7,1.09822]
[1770228631761,0.00375389,2100.1,2098.9,0.477]
[1770228631960,7.81368891,2100.2,2098.9,0.48124683]
[1770228632162,0.00375389,2100.0,2098.9,0.48124683]
[1770228632368,7.81368891,2100.2,2098.9,0.48124683]
[1770228632568,0.23848,2101.0,2098.9,0.48124683]
[1770228632569,7.81368891,2101.0,2099.8,1.09764]
[1770228632766,7.81368891,2101.4,2100.0,1.33612]
[1770228632970,7.81368891,2101.4,2099.9,1.5746]
[1770228633265,7.81368891,2101.4,2100.1,3.29679053]
[1770228633461,7.81368891,2101.4,2100.0,0.01133058]
[1770228633666,0.00554288,2101.4,2100.3,1.09738]
[1770228633968,0.00554288,2101.4,2100.2,0.23857]
[1770228634162,0.00554288,2101.4,2100.4,3.2401414]
[1770228634367,7.82298568,2101.4,2100.4,3.2461049]
[1770228634565,7.82298568,2101.4,2100.4,0.0059635]
[1770228634769,7.81368891,2101.2,2100.4,0.0059635]
[1770228634969,7.81368891,2101.2,2099.9,0.477]
[1770228635165,0.00375389,2100.6,2099.9,0.477]
[1770228635361,7.81368891,2100.4,2099.0,0.477]
[1770228635570,7.8174428,2100.4,2099.0,0.477]
[1770228635870,7.81368891,2100.2,2099.0,0.477]
[1770228636064,7.81368891,2100.2,2099.0,0.48165665]
[1770228636674,7.81368891,2100.2,2099.0,0.00465665]
[1770228636867,7.8174428,2100.2,2099.0,0.00465665]
[1770228637170,7.81368891,2099.6,2099.0,0.00465665]
[1770228637371,7.81830405,2099.6,2099.0,0.00465665]
[1770228637666,7.81368891,2100.1,2099.1,3.61425088]
[1770228638166,7.81368891,2100.7,2099.0,0.00465665]
[1770228638371,7.81368891,2100.7,2099.2,4.64413802]
[1770228638666,7.81755196,2100.7,2099.2,0.23868]
[1770228638866,7.82130585,2100.7,2099.2,0.23868]
[1770228639069,0.23837,2102.0,2099.9,1.09759]
[1770228639266,7.82130585,2101.9,2100.0,8.11448828]
[1770228639473,7.82130585,2101.9,2100.4,1.09733]
[1770228639671,7.82130585,2101.9,2100.6,0.23851]
[1770228639872,7.82130585,2101.9,2100.6,1.33574]